bitfinex/quotes_SOLUSD_20250929
["timestamp","ask_amount","ask_price","bid_price","bid_amount"]
[1759128783818,2.92410885,208.92,208.88,30.78737758]
[1759128784120,2.20410885,208.9,208.87,4.88765063]
[1759128784298,2.92410885,208.9,208.87,4.88765063]
[1759128784698,2.20410885,208.88,208.87,0.1]
[1759128787024,2.20410885,208.88,208.87,4.88766696]
[1759128787231,2.20410885,208.9,208.87,5.59766696]
[1759128788828,2.92410885,208.9,208.87,4.88766696]
[1759128789129,2.20410885,208.9,208.87,4.88766696]
[1759128789419,2.92410885,208.9,208.87,4.88766696]
[1759128789622,2.20410885,208.9,208.87,4.88766696]
[1759128789813,26.0,208.91,208.87,0.1]
[1759128789814,2.20410885,208.88,208.87,0.1]
[1759128791123,2.20410885,208.88,208.87,4.88766696]
[1759128792434,2.20410885,208.9,208.87,4.88766696]
[1759128792800,2.89410885,208.9,208.87,4.88766696]
[1759128793430,2.20410885,208.9,208.87,4.88766696]
[1759128793823,2.89410885,208.9,208.87,4.88766696]
[1759128795538,2.20410885,208.88,208.87,0.1]
[1759128795931,2.89410885,208.88,208.87,0.1]
[1759128796121,2.89410885,208.88,208.87,4.88766696]
[1759128796447,2.89410885,208.88,208.87,0.1]
[1759128797414,7.68154661,208.88,208.87,0.1]
[1759128798214,26.0,208.85,208.81,0.1]
[1759128798419,1.41238833,208.82,208.81,0.1]
[1759128798820,2.10238833,208.82,208.81,0.1]
[1759128799842,1.41238833,208.82,208.81,0.1]
[1759128800136,2.10238833,208.82,208.81,0.1]
[1759128800318,1.41238833,208.82,208.81,0.1]
[1759128800722,2.10238833,208.82,208.81,0.1]
[1759128801928,6.89120166,208.82,208.81,0.1]
[1759128803126,1.41238833,208.82,208.81,0.1]
[1759128803322,2.12238833,208.82,208.81,0.1]
[1759128803637,6.91120166,208.82,208.81,0.1]
[1759128804318,2.12238833,208.82,208.81,0.1]
[1759128805246,3.92077016,208.86,208.81,0.1]
[1759128805417,2.12238833,208.82,208.81,0.1]
[1759128805924,6.91120166,208.82,208.81,0.1]
[1759128807428,1.41238833,208.82,208.81,0.1]
[1759128809040,26.0,208.86,208.81,0.78]
[1759128809229,1.41238833,208.83,208.81,0.78]
[1759128809439,2.12238833,208.83,208.81,0.1]
[1759128809620,1.41238833,208.83,208.81,0.1]
[1759128810651,26.0,208.84,208.81,0.1]
[1759128810818,16.75409062,208.91,208.82,0.68]
[1759128811014,1.41238833,208.87,208.82,0.68]
[1759128811245,1.41238833,208.87,208.83,0.68]
[1759128811428,1.41238833,208.87,208.84,0.68]
[1759128812534,26.0,208.86,208.84,0.68]
[1759128812927,26.0,208.86,208.83,4.78853388]
[1759128813134,2.12238833,208.85,208.81,0.1]
[1759128813333,1.41238833,208.83,208.81,0.1]
[1759128813727,0.71,208.82,208.81,0.1]
[1759128814353,1.41238833,208.83,208.81,0.1]
[1759128814849,2.12238833,208.83,208.81,0.1]
[1759128816237,6.91097911,208.83,208.81,0.1]
[1759128816547,0.71,208.82,208.81,0.1]
[1759128818347,31.49881333,208.82,208.81,0.1]
[1759128819256,30.78881333,208.82,208.81,0.1]
[1759128819459,26.0,208.82,208.81,0.1]
[1759128825450,4.78807899,208.86,208.81,5.56898247]
[1759128825658,26.0,208.84,208.82,0.68]
[1759128825843,1.41238833,208.86,208.83,0.68]
[1759128826042,26.0,208.87,208.83,0.68]
[1759128826352,1.41238833,208.88,208.84,0.68]
[1759128826662,26.0,208.87,208.85,0.68]
[1759128827035,1.41238833,208.9,208.86,0.68]
[1759128827358,1.41238833,208.9,208.87,0.68]
[1759128827560,27.41238833,208.9,208.83,16.75986357]
[1759128827734,27.41238833,208.9,208.88,0.68]
[1759128827930,1.41238833,208.9,208.83,16.75986357]
[1759128828149,5.49629205,208.93,208.86,0.68]
[1759128828347,1.41238833,208.92,208.87,4.78766696]
[1759128828544,1.41238833,208.92,208.88,0.68]
[1759128828744,1.41238833,208.9,208.86,0.68]
[1759128828951,1.41238833,208.9,208.85,4.78812544]
[1759128828952,1.41238833,208.88,208.85,4.78812544]
[1759128829151,1.41238833,208.88,208.86,0.68]
[1759128829463,26.0,208.91,208.87,0.68]
[1759128829765,4.01932865,208.98,208.87,0.68]
[1759128829766,27.41238833,208.95,208.87,0.68]
[1759128829942,30.62760598,208.95,208.87,0.68]
[1759128830149,27.41238833,208.95,208.87,0.68]
[1759128830459,3.92521765,209.01,208.89,13.59559401]
[1759128830640,6.90684944,209.01,208.91,13.59559401]
[1759128830838,6.90684944,209.01,208.89,13.59559401]
[1759128830839,1.41238833,208.99,208.92,0.68]
[1759128831042,1.41238833,208.97,208.92,0.68]
[1759128831256,1.41238833,208.97,208.89,13.59559401]
[1759128831560,1.41238833,208.97,208.93,0.69]
[1759128831759,1.41238833,208.95,208.8,0.1]
[1759128831955,0.68,208.94,208.86,0.69]
[1759128832155,1.41238833,208.94,208.86,0.69]
[1759128832848,0.68,208.93,208.86,0.69]
[1759128834140,0.68,208.93,208.87,4.78766696]
[1759128834341,1.41238833,208.94,208.88,0.69]
[1759128836250,1.41238833,208.94,208.88,5.477338]
[1759128836746,5.46605837,208.95,208.88,5.477338]
[1759128836946,1.41238833,208.94,208.88,5.477338]
[1759128837870,27.41238833,208.94,208.89,0.69]
[1759128838050,27.41238833,208.94,208.9,0.69]
[1759128838452,28.09238833,208.94,208.9,0.69]
[1759128840269,32.19845872,208.94,208.87,4.78755515]
[1759128840473,26.0,208.91,208.85,5.47812544]
[1759128840669,2.09238833,208.9,208.83,4.78858401]
[1759128840872,26.0,208.91,208.83,4.78858401]
[1759128840873,27.41238833,208.91,208.85,0.69]
[1759128841044,1.41238833,208.95,208.86,13.59559401]
[1759128841250,1.41238833,208.95,208.87,0.69]
[1759128841449,1.41238833,208.95,208.88,4.78743776]
[1759128841762,1.41238833,208.95,208.88,5.47743776]
[1759128841966,6.8780803,208.96,208.89,0.69]
[1759128842273,2.09238833,209.01,208.93,26.0]
[1759128842451,1.41238833,209.02,208.94,0.69]
[1759128842650,0.68,209.03,208.94,0.69]
[1759128843146,2.09238833,209.03,208.94,0.69]
[1759128843655,2.09238833,209.03,208.95,16.75041875]
[1759128843861,2.09238833,209.03,208.96,0.69]
[1759128844772,0.68,209.03,208.96,0.69]
[1759128844956,32.87643869,209.03,208.96,0.69]
[1759128845272,32.87643869,209.03,208.92,11.96591569]
[1759128845273,44.83644443,209.03,208.92,11.96591569]
[1759128845472,1.41238833,209.01,208.92,11.96591569]
[1759128845671,17.42641147,209.0,208.91,0.69]
[1759128845856,26.0,208.97,208.87,13.59559401]
[1759128846058,0.68,208.96,208.88,0.69]
[1759128846268,2.09238833,208.96,208.88,0.69]
[1759128846969,6.87805735,208.96,208.89,4.78720857]
[1759128847958,6.19805735,208.96,208.89,4.78720857]
[1759128848278,0.68,208.95,208.89,4.78720857]
[1759128848873,31.46597211,208.95,208.89,4.78720857]
[1759128849376,26.68,208.95,208.89,4.78720857]
[1759128850458,26.68,208.95,208.89,5.47720857]
[1759128850885,26.0,208.95,208.9,0.69]
[1759128851257,137.01932865,209.08,208.91,0.69]
[1759128851480,0.68,209.01,208.91,0.69]
[1759128852159,0.68,209.01,208.92,13.59559401]
[1759128852374,0.68,209.01,208.93,0.69]
[1759128852576,2.13238833,209.04,208.93,0.69]
[1759128852768,26.0,209.03,208.93,0.69]
[1759128853076,26.0,209.03,208.94,16.75122044]
[1759128853379,26.0,209.03,208.95,0.72]
[1759128853962,6.19621667,209.04,208.95,0.72]
[1759128854168,26.0,209.01,208.94,4.78606298]
[1759128854362,2.13238833,209.0,208.94,4.78606298]
[1759128854964,1.41238833,208.98,208.93,4.78629205]
[1759128855178,0.72,208.99,208.89,0.72]
[1759128855179,0.72,208.97,208.89,0.72]
[1759128855475,0.72,208.97,208.9,4.78697941]
[1759128855476,2.13238833,208.97,208.9,4.78697941]
[1759128856187,27.41238833,208.99,208.91,0.72]
[1759128857173,27.41238833,208.99,208.92,16.75282404]
[1759128857382,28.13238833,208.99,208.92,16.75282404]
[1759128857882,0.72,208.98,208.92,4.78652115]
[1759128858288,0.72,208.98,208.92,17.47282404]
[1759128860067,2.13238833,208.97,208.92,4.78652115]
[1759128860393,2.20354084,208.95,208.88,0.72]
[1759128860577,0.72,208.94,208.89,4.78718392]
[1759128860773,0.72,208.93,208.89,4.78718392]
[1759128860998,0.66,208.92,208.89,4.78718392]
[1759128861688,0.66,208.92,208.87,4.78766696]
[1759128861988,0.66,208.91,208.87,4.78766696]
[1759128862184,2.86354084,208.91,208.87,4.78766696]
[1759128862994,2.20354084,208.91,208.87,4.78766696]
[1759128863172,2.20354084,208.93,208.87,5.50766696]
[1759128863374,2.86354084,208.93,208.87,5.50766696]
[1759128865390,2.20354084,208.91,208.87,4.78766696]
[1759128865688,2.86354084,208.91,208.87,4.78766696]
[1759128866085,2.20354084,208.91,208.87,4.78766696]
[1759128866275,2.20444848,208.93,208.88,0.72]
[1759128866473,2.20444848,208.93,208.89,0.72]
[1759128866690,2.20444848,208.93,208.9,0.72]
[1759128867083,2.20444848,208.93,208.87,16.75683438]
[1759128867284,2.20444848,208.93,208.89,4.78720857]
[1759128867485,2.20444848,208.93,208.89,5.50720857]
[1759128868087,2.20444848,208.93,208.89,4.78720857]
[1759128868298,2.20444848,208.93,208.9,0.72]
[1759128869582,26.0,208.94,208.91,4.78675027]
[1759128871698,2.20444848,208.95,208.91,4.78675027]
[1759128871908,2.86444848,208.95,208.91,4.78675027]
[1759128872120,28.86444848,208.95,208.91,4.78675027]
[1759128873604,0.66,208.94,208.91,4.78675027]
[1759128874188,2.20444848,208.96,208.92,0.72]
[1759128874583,2.86444848,208.96,208.92,0.72]
[1759128874997,0.66,208.98,208.91,16.75362595]
[1759128875201,2.20444848,208.97,208.92,0.72]
[1759128875404,0.66,208.98,208.93,0.72]
[1759128875610,0.66,208.98,208.91,16.75362595]
[1759128875611,2.86444848,208.98,208.94,0.72]
[1759128876108,2.20444848,208.99,208.95,4.78583393]
[1759128876317,0.66,209.01,208.96,0.72]
[1759128876489,2.20444848,209.02,208.97,0.72]
[1759128876687,26.0,209.01,208.97,0.72]
[1759128877111,26.0,209.01,208.95,16.75041875]
[1759128877112,5.42840128,209.04,208.98,0.72]
[1759128877409,26.0,209.03,208.98,0.72]
[1759128877588,2.86444848,209.02,208.96,0.72]
[1759128878702,2.86444848,209.02,208.97,4.78537589]
[1759128879016,0.66,209.01,208.97,4.78537589]
[1759128879188,0.66,209.0,208.97,4.78537589]
[1759128880518,26.0,209.03,208.97,4.78537589]
[1759128880724,2.20444848,209.02,208.97,4.78537589]
[1759128880909,28.86444848,209.04,208.98,0.72]
[1759128881612,2.86444848,209.04,208.98,0.72]
[1759128881797,26.0,209.03,208.98,0.72]
[1759128882120,26.0,209.03,208.99,0.72]
[1759128882423,0.66,209.06,209.0,0.72]
[1759128882601,0.66,209.06,209.01,4.78446007]
[1759128882799,0.66,209.06,209.01,5.50446007]
[1759128883202,0.66,209.06,209.02,0.72]
[1759128883401,2.20444848,209.07,209.02,0.72]
[1759128883614,2.86444848,209.07,209.02,0.72]
[1759128883920,0.66,209.06,209.02,0.72]
[1759128884620,2.20444848,209.07,209.03,0.72]
[1759128885816,0.86,209.08,209.03,0.72]
[1759128886017,0.2,209.08,209.03,5.50395786]
[1759128886411,0.66,209.07,209.03,5.50395786]
[1759128886925,0.2,209.08,209.03,5.50395786]
[1759128887111,0.86,209.08,209.03,5.50395786]
[1759128887921,0.66,209.07,209.03,5.50395786]
[1759128889416,0.66,209.06,209.01,0.72]
[1759128889616,0.66,209.05,209.01,0.72]
[1759128889927,0.66,209.04,208.99,4.78471979]
[1759128890120,0.66,209.03,208.99,5.50471979]
[1759128890433,2.86444848,209.05,209.0,0.72]
[1759128890618,2.86444848,209.05,209.01,0.72]
[1759128891209,2.86444848,209.05,209.01,5.50445561]
[1759128891516,2.86444848,209.05,209.01,0.72]
[1759128893237,0.67,209.04,208.98,4.78492487]
[1759128893406,0.67,209.03,208.98,4.78492487]
[1759128893734,0.67,209.02,208.98,5.50492487]
[1759128893925,2.20444848,209.05,208.98,4.78492487]
[1759128894126,0.67,209.04,208.98,5.50492487]
[1759128894334,0.67,209.04,208.99,0.72]
[1759128894639,0.67,209.04,209.0,0.72]
[1759128895010,2.20444848,209.05,208.99,4.78471463]
[1759128895217,2.20444848,209.05,209.0,0.72]
[1759128895509,2.87444848,209.05,209.01,0.72]
[1759128896239,2.87164503,209.05,209.01,0.72]
[1759128896441,2.87164503,209.05,209.01,5.50442702]
[1759128898423,2.20164503,209.05,209.01,0.72]
[1759128898630,2.87164503,209.05,209.01,0.72]
[1759128898935,2.87164503,209.05,208.97,4.78537589]
[1759128898936,7.65524594,209.05,208.97,4.78537589]
[1759128899140,0.67,209.04,208.98,0.72]
[1759128900619,2.20164503,209.03,208.95,37.96424657]
[1759128900824,0.67,209.02,208.96,5.5056049]
[1759128901622,2.20164503,209.01,208.96,5.5056049]
[1759128901822,0.67,209.0,208.93,5.50629205]
[1759128902046,6.98614466,209.01,208.93,4.78629205]
[1759128902047,2.87164503,208.99,208.93,4.78629205]
[1759128902344,2.20164503,208.97,208.93,4.78629205]
[1759128902544,2.87164503,208.97,208.93,5.50629205]
[1759128903037,2.20164503,209.0,208.94,0.72]
[1759128903336,31.45449963,209.01,208.94,0.72]
[1759128903337,28.20164503,209.01,208.94,0.72]
[1759128903535,28.87164503,209.01,208.94,0.72]
[1759128903728,2.20164503,208.99,208.94,5.50585804]
[1759128903932,2.87164503,208.99,208.94,5.50585804]
[1759128904134,2.87164503,208.99,208.95,0.72]
[1759128905639,2.20164503,208.99,208.96,0.72]
[1759128907222,2.20164503,208.99,208.96,5.50555816]
[1759128908040,2.87164503,208.99,208.94,0.72]
[1759128908226,0.67,208.98,208.94,0.72]
[1759128908921,2.20164503,208.99,208.94,0.72]
[1759128909121,2.87164503,208.99,208.95,0.72]
[1759128909540,2.20164503,208.99,208.96,0.72]
[1759128911153,2.20164503,209.0,208.97,4.78537589]
[1759128911326,2.20164503,209.02,208.98,0.72]
[1759128911733,2.20164503,209.02,208.99,0.72]
[1759128912549,2.20164503,209.02,209.0,4.78468899]
[1759128913046,2.87164503,209.02,209.0,4.78468899]
[1759128914248,2.87164503,209.02,208.98,4.7851469]
[1759128914427,2.87164503,209.02,208.98,5.4651469]
[1759128915545,2.20164503,209.02,208.99,0.68]
[1759128916043,2.20164503,209.0,208.94,5.46606298]
[1759128916244,2.87164503,209.0,208.94,5.46606298]
[1759128916547,0.67,208.99,208.94,5.46606298]
[1759128916749,2.87164503,208.98,208.94,5.46606298]
[1759128917041,0.67,208.97,208.92,5.46633277]
[1759128917223,2.87164503,208.96,208.92,5.46633277]
[1759128918033,2.20164503,208.96,208.92,4.78633277]
[1759128918247,0.67,208.95,208.92,4.78633277]
[1759128918450,2.20164503,208.96,208.92,4.78633277]
[1759128918451,2.87164503,208.96,208.92,5.46633277]
[1759128918645,0.67,208.95,208.92,4.78633277]
[1759128919744,6.98733905,208.96,208.9,5.46676005]
[1759128919951,2.20164503,208.94,208.9,5.46676005]
[1759128920259,2.08055611,208.94,208.9,5.46676005]
[1759128921135,2.08055611,208.94,208.9,5.45676005]
[1759128921451,1.41055611,208.94,208.9,4.78676005]
[1759128921651,1.41055611,208.92,208.89,4.78717772]
[1759128921843,1.41055611,208.92,208.87,11.96869183]
[1759128921844,1.41055611,208.92,208.87,0.67]
[1759128922150,1.41055611,208.9,208.85,0.67]
[1759128922343,2.11055611,208.9,208.82,18.38440734]
[1759128922542,2.11055611,208.9,208.85,0.67]
[1759128922858,2.11055611,208.9,208.86,0.67]
[1759128923153,0.7,208.89,208.84,0.67]
[1759128923458,4.78656005,208.92,208.84,0.67]
[1759128923459,2.11055611,208.88,208.84,0.67]
[1759128923954,2.11055611,208.88,208.84,5.45834611]
[1759128924552,0.7,208.87,208.82,5.45876375]
[1759128924853,1.41055611,208.88,208.83,0.67]
[1759128925049,0.7,208.87,208.82,4.78876375]
[1759128925256,2.11055611,208.86,208.82,5.45876375]
[1759128926052,26.7,208.89,208.83,0.67]
[1759128926257,26.0,208.89,208.83,0.67]
[1759128928544,26.0,208.89,208.84,4.78835472]
[1759128928854,2.11055611,208.88,208.84,4.78835472]
[1759128929156,0.7,208.87,208.82,4.78881333]
[1759128929537,0.7,208.86,208.82,5.45881333]
[1759128930440,1.41055611,208.88,208.83,0.67]
[1759128930748,1.41055611,208.88,208.82,4.78881333]
[1759128930749,2.11055611,208.88,208.84,0.67]
[1759128930953,0.7,208.87,208.82,17.43084666]
[1759128931149,0.7,208.87,208.83,0.67]
[1759128932445,0.7,208.87,208.84,4.78835472]
[1759128932648,0.7,208.86,208.82,4.78872491]
[1759128932837,0.7,208.85,208.82,4.78872491]
[1759128933038,2.11055611,208.84,208.81,0.1]
[1759128933359,26.0,208.86,208.81,0.1]
[1759128933360,1.41055611,208.82,208.81,0.1]
[1759128933744,2.11055611,208.82,208.81,0.1]
[1759128934359,6.89936944,208.82,208.81,0.1]
[1759128938749,0.7,208.82,208.81,0.1]
[1759128938952,2.11055611,208.82,208.81,0.1]
[1759128940160,6.89936944,208.82,208.81,0.1]
[1759128942159,26.0,208.79,208.77,0.05]
[1759128942354,1.41055611,208.78,208.77,0.05]
[1759128942557,26.0,208.79,208.77,0.05]
[1759128942769,27.41055611,208.8,208.77,0.72]
[1759128942962,1.41055611,208.8,208.78,0.67]
[1759128944072,163.58861005,208.83,208.77,0.05]
[1759128944371,158.8,208.83,208.79,0.67]
[1759128944566,158.8,208.83,208.77,0.05]
[1759128944567,1.41055611,208.82,208.8,0.67]
[1759128944871,1.41055611,208.82,208.81,0.67]
[1759128945756,26.0,208.83,208.81,0.67]
[1759128947789,1.41055611,208.86,208.82,0.67]
[1759128948073,1.41055611,208.86,208.83,0.67]
[1759128949271,1.41055611,208.86,208.82,4.78860151]
[1759128949450,1.41055611,208.86,208.82,5.45860151]
[1759128950956,27.41055611,208.87,208.83,0.72]
[1759128951157,26.0,208.88,208.84,0.72]
[1759128951368,27.41055611,208.88,208.84,0.72]
[1759128951674,28.11055611,208.88,208.84,0.72]
[1759128952472,28.11055611,208.88,208.83,4.78848227]
[1759128952662,28.11055611,208.88,208.83,5.50848227]
[1759128953473,32.89799633,208.88,208.83,5.50848227]
[1759128953680,28.11055611,208.88,208.83,5.50848227]
[1759128953981,27.41055611,208.88,208.84,0.72]
[1759128954180,27.41055611,208.88,208.84,5.50826006]
[1759128954565,28.11055611,208.88,208.84,4.78826006]
[1759128954873,32.89805802,208.88,208.82,5.50879081]
[1759128956074,26.7,208.88,208.82,5.50879081]
[1759128956272,28.11055611,208.88,208.82,5.50879081]
[1759128957477,28.11055611,208.88,208.82,4.78879081]
[1759128957772,0.7,208.87,208.82,4.78879081]
[1759128957953,0.7,208.87,208.83,0.72]
[1759128958452,26.0,208.88,208.84,0.72]
[1759128958658,1.41055611,208.89,208.84,0.72]
[1759128958880,1.41055611,208.89,208.83,4.78846622]
[1759128959084,1.41055611,208.89,208.84,0.72]
[1759128959289,2.11055611,208.89,208.85,0.72]
[1759128959879,0.7,208.88,208.83,5.50846622]
[1759128960177,0.7,208.88,208.84,0.72]
[1759128960552,0.7,208.88,208.84,5.50815408]
[1759128961471,1.41055611,208.86,208.78,13.59559401]
[1759128961684,1.41055611,208.84,208.79,0.72]
[1759128961851,1.41055611,208.82,208.78,4.78973081]
[1759128962051,1.41055611,208.83,208.79,0.72]
[1759128962279,1.41055611,208.85,208.8,0.72]
[1759128962484,1.41055611,208.87,208.81,4.78904267]
[1759128962789,1.41055611,208.87,208.82,0.72]
[1759128962979,2.11055611,208.87,208.82,0.72]
[1759128963485,2.11055611,208.87,208.83,0.72]
[1759128963886,26.0,208.88,208.84,0.72]
[1759128964080,1.41055611,208.87,208.84,0.72]
[1759128964607,2.11055611,208.87,208.83,4.78858401]
[1759128964894,0.7,208.86,208.83,4.78858401]
[1759128965297,1.41055611,208.87,208.82,5.50880024]
[1759128965506,6.89825209,208.87,208.82,5.50880024]
[1759128966001,1.41055611,208.85,208.79,5.50950141]
[1759128966179,2.11055611,208.85,208.79,5.50950141]
[1759128966602,0.7,208.84,208.79,5.50950141]
[1759128966898,1.41055611,208.81,208.77,0.77]
[1759128967100,2.11055611,208.81,208.77,0.77]
[1759128967280,2.11055611,208.81,208.77,0.05]
[1759128967477,0.7,208.8,208.77,0.05]
[1759128967681,1.41055611,208.81,208.77,4.83995495]
[1759128968090,2.11055611,208.81,208.77,5.55995495]
[1759128968281,1.41055611,208.79,208.77,4.83995495]
[1759128968897,6.20006497,208.79,208.77,0.05]
[1759128969082,0.7,208.78,208.77,0.05]
[1759128970206,6.34222444,208.78,208.77,0.05]
[1759128970786,11.13195525,208.78,208.77,0.05]
[1759128974209,5.48973081,208.78,208.77,0.05]
[1759128975604,11.13195525,208.78,208.77,0.05]
[1759128977526,5.48973081,208.78,208.77,0.05]
[1759128978013,11.13195525,208.78,208.77,0.05]
[1759128980226,9.90676031,208.78,208.77,0.05]
[1759128981612,6.99824556,208.78,208.77,0.05]
[1759128982925,2.20851475,208.78,208.77,0.77]
[1759128983095,2.20851475,208.78,208.77,0.05]
[1759128983293,28.20851475,208.78,208.77,0.05]
[1759128985305,32.99824556,208.78,208.77,0.05]
[1759128985504,33.71824556,208.78,208.77,0.05]
[1759128985921,32.99824556,208.78,208.77,0.05]
[1759128986219,33.71824556,208.78,208.77,0.05]
[1759128987816,32.99824556,208.78,208.77,0.05]
[1759128990501,28.20851475,208.78,208.77,0.05]
[1759128992018,33.71824556,208.78,208.77,0.05]
[1759128994321,28.20851475,208.78,208.77,0.05]
[1759128995619,26.0,208.78,208.77,0.05]
[1759128995826,28.20851475,208.78,208.77,0.77]
[1759128997326,28.20851475,208.78,208.77,0.05]
[1759128998626,32.99824556,208.78,208.77,0.05]
[1759128999336,28.20851475,208.78,208.77,0.05]
[1759129000030,32.99824556,208.78,208.77,0.05]
[1759129000228,13.59559401,208.77,208.76,0.1]
[1759129000428,26.0,208.74,208.68,0.72]
[1759129000638,2.20851475,208.72,208.68,0.72]
[1759129001115,2.92851475,208.72,208.66,0.82]
[1759129001320,2.92851475,208.72,208.66,0.1]
[1759129001633,2.92851475,208.72,208.67,0.72]
[1759129002210,7.71962245,208.72,208.67,0.72]
[1759129003917,2.20851475,208.72,208.69,0.72]
[1759129004119,2.92851475,208.72,208.66,5.61248296]
[1759129004843,33.71962245,208.72,208.66,0.82]
[1759129006924,33.71962245,208.72,208.66,0.1]
[1759129007230,33.71962245,208.72,208.67,0.72]
[1759129007444,32.99962245,208.72,208.69,0.72]
[1759129008438,28.20851475,208.72,208.71,0.82]
[1759129008616,28.20851475,208.72,208.71,0.1]
[1759129008816,2.20851475,208.72,208.71,0.82]
[1759129010434,2.20851475,208.72,208.71,0.1]
[1759129010839,6.99962245,208.72,208.71,0.1]
[1759129011829,33.69962245,208.72,208.71,0.1]
[1759129012046,26.0,208.69,208.66,0.1]
[1759129012229,2.20851475,208.67,208.66,0.1]
[1759129012837,2.20851475,208.67,208.66,0.78]
[1759129013534,3.22412924,208.74,208.66,5.57248538]
[1759129013731,2.20851475,208.74,208.67,0.68]
[1759129014433,28.20851475,208.74,208.68,16.77209123]
[1759129014739,28.20851475,208.74,208.69,0.68]
[1759129016112,26.0,208.74,208.69,0.68]
[1759129016842,26.0,208.74,208.7,4.79156684]
[1759129017142,26.0,208.74,208.71,0.68]
[1759129017436,26.0,208.74,208.72,0.68]
[1759129017826,26.0,208.74,208.73,0.68]
[1759129020514,4.79049516,208.75,208.73,0.68]
[1759129020841,6.99924555,208.74,208.68,0.68]
[1759129021039,2.20851475,208.72,208.68,0.68]
[1759129021429,2.20851475,208.72,208.69,0.68]
[1759129021838,2.90851475,208.72,208.67,5.47225571]
[1759129022138,2.90851475,208.72,208.68,0.68]
[1759129024423,2.20851475,208.75,208.69,5.47179644]
[1759129024628,2.20851475,208.75,208.7,0.68]
[1759129024946,2.20851475,208.75,208.71,0.68]
[1759129025335,0.7,208.76,208.71,0.68]
[1759129026226,5.49031052,208.76,208.71,0.68]
[1759129026634,4.79031052,208.76,208.71,0.68]
[1759129026821,0.7,208.75,208.71,0.68]
[1759129027146,0.7,208.75,208.71,5.47131804]
[1759129029448,0.7,208.75,208.71,0.68]
[1759129029946,2.20851475,208.76,208.72,0.68]
[1759129030135,2.90851475,208.76,208.72,0.68]
[1759129031944,7.6987152,208.76,208.72,0.68]
[1759129033330,0.67,208.75,208.7,0.66]
[1759129033532,6.9987152,208.76,208.71,0.66]
[1759129033533,0.67,208.74,208.71,0.66]
[1759129033945,7.6687152,208.76,208.71,0.66]
[1759129034133,0.67,208.75,208.71,0.66]
[1759129034339,6.9987152,208.76,208.71,0.66]
[1759129034638,0.67,208.75,208.71,0.66]
[1759129035447,0.67,208.75,208.71,5.45126738]
[1759129037957,0.67,208.75,208.71,0.66]
[1759129038849,5.46046086,208.75,208.71,0.66]
[1759129041254,0.67,208.75,208.71,0.66]
[1759129042227,6.20327702,208.76,208.72,0.66]
[1759129042433,6.86327702,208.76,208.72,0.66]
[1759129042652,0.66,208.75,208.72,0.66]
[1759129042947,0.66,208.75,208.71,5.45124352]
[1759129043548,0.66,208.75,208.72,0.66]
[1759129043747,0.66,208.75,208.7,0.66]
[1759129045955,0.66,208.75,208.7,5.4513674]
[1759129046254,4.79022961,208.76,208.71,0.66]
[1759129046457,0.66,208.75,208.72,0.66]
[1759129046956,4.79022961,208.76,208.72,0.66]
[1759129047160,5.45022961,208.76,208.72,0.66]
[1759129047334,29.2247605,208.77,208.72,5.45107457]
[1759129047539,31.44971398,208.79,208.73,0.66]
[1759129047747,34.67447448,208.79,208.73,0.66]
[1759129047954,31.44971398,208.79,208.73,0.66]
[1759129048154,34.67447448,208.79,208.73,0.66]
[1759129048348,31.44971398,208.79,208.73,0.66]
[1759129048548,34.67447448,208.79,208.73,0.66]
[1759129048763,26.0,208.79,208.74,4.79064865]
[1759129049060,26.0,208.79,208.75,0.66]
[1759129049361,0.66,208.79,208.75,0.66]